fUSD/lending_fUSD_20241223
["ID","MTS","AMOUNT","RATE_DAILY","PERIOD"]
[346443582,1734978638899,-1452.36,0.00017253,2]
[346443583,1734978638909,-2235.57,0.00017253,2]
[346443584,1734978638918,-1619.85,0.00017253,2]
[346443585,1734978638927,-1790.76,0.00017253,2]
[346443586,1734978638937,-500.0,0.00017253,2]
[346443587,1734978638947,-500.0,0.00017253,2]
[346443588,1734978638956,-500.0,0.00017253,2]
[346443589,1734978638965,-607.78,0.00017253,2]
[346443590,1734978638975,-2132.87,0.00017253,2]
[346443591,1734978638984,-500.0,0.00017253,2]
[346443592,1734978638993,-2977.53,0.00017253,2]
[346443593,1734978639002,-707.26,0.00017253,2]
[346443594,1734978639011,-513.87,0.00017253,2]
[346443595,1734978639020,-2986.12,0.00017253,2]
[346443596,1734978639029,-1647.72,0.00017253,2]
[346443597,1734978639039,-2163.08,0.00017253,2]
[346443598,1734978639047,-500.0,0.00017253,2]
[346443599,1734978639057,-2086.11,0.00017253,2]
[346443600,1734978639066,-1457.24,0.00017253,2]
[346443601,1734978639075,-2392.78,0.00017253,2]
[346443602,1734978639084,-621.82,0.00017253,2]
[346443603,1734978639093,-1977.51,0.00017253,2]
[346443604,1734978639104,-1670.72,0.00017253,2]
[346443605,1734978639114,-187.72,0.00017253,2]
[346443606,1734978639123,-1704.71,0.00017253,2]
[346443607,1734978639132,-500.0,0.00017253,2]
[346443608,1734978639141,-1336.76,0.00017253,2]
[346443609,1734978639150,-500.0,0.00017253,2]
[346443610,1734978639159,-2311.39,0.00017253,2]
[346443611,1734978639168,-682.47,0.00017253,2]
[346443612,1734978639177,-1130.32,0.00017253,2]
[346443613,1734978639186,-1672.58,0.00017253,2]
[346443614,1734978639196,-2328.77,0.00017253,2]
[346443615,1734978639205,-1023.41,0.00017253,2]
[346443616,1734978639214,-500.0,0.00017253,2]
[346443617,1734978639224,-1799.1,0.00017253,2]
[346443618,1734978639234,-1146.37,0.00017253,2]
[346443619,1734978639243,-1419.11,0.00017253,2]
[346443620,1734978639252,-1775.75,0.00017253,2]
[346443621,1734978639265,-1306.09,0.00017253,2]
[346443622,1734978639275,-1162.9,0.00017253,2]
[346443623,1734978639284,-2365.08,0.00017253,2]
[346443624,1734978639293,-3323.92,0.00017253,2]
[346443625,1734978639303,-846.42,0.00017253,2]
[346443626,1734978639313,-1327.47,0.00017253,2]
[346443627,1734978639323,-2397.48,0.00017253,2]
[346443628,1734978639332,-626.76,0.00017253,2]
[346443629,1734978639342,-626.76,0.00017253,2]
[346443630,1734978639352,-500.0,0.00017253,2]
[346443631,1734978639362,-1195.16,0.00017253,2]
[346443632,1734978639372,-6170.91,0.00017253,2]
[346443633,1734978639381,-1107.4,0.00017253,2]
[346443634,1734978639391,-1151.37,0.00017253,2]
[346443635,1734978639400,-2634.04,0.00017253,2]
[346443636,1734978639409,-3708.84,0.00017253,2]
[346443637,1734978639418,-869.4,0.00017253,2]
[346443638,1734978639428,-1328.16,0.00017253,2]
[346443639,1734978639438,-1765.0,0.00017253,2]
[346443640,1734978639447,-1736.97,0.00017253,2]
[346443641,1734978639457,-4002.85,0.00017253,2]
[346443642,1734978639466,-2565.18,0.00017253,2]
[346443643,1734978639476,-1068.42,0.00017253,2]
[346443644,1734978639486,-500.0,0.00017253,2]
[346443645,1734978639495,-7106.36,0.00017253,2]
[346443646,1734978639505,-636.19,0.00017253,2]
[346443647,1734978639515,-7806.22,0.00017253,2]
[346443648,1734978639524,-2810.69,0.00017253,2]
[346443649,1734978639534,-37115.27,0.00017253,2]
[346443650,1734978639544,-1537.84,0.00017253,2]
[346443651,1734978639554,-500.0,0.00017253,2]
[346443652,1734978639564,-500.0,0.00017253,2]
[346443653,1734978639574,-500.0,0.00017253,2]
[346443654,1734978639584,-5047.03,0.00017253,2]
[346443655,1734978639594,-1982.16,0.00017253,2]
[346443656,1734978639609,-3062.87,0.00017253,2]
[346443657,1734978639619,-1376.41,0.00017253,2]
[346443658,1734978639629,-2120.04,0.00017253,2]
[346443659,1734978639639,-1688.37,0.00017253,2]
[346443660,1734978639649,-741.8,0.00017253,2]
[346443661,1734978639659,-5290.08,0.00017253,2]
[346443662,1734978639668,-1265.93,0.00017253,2]
[346443663,1734978639678,-1882.42,0.00017253,2]
[346443664,1734978639687,-27058.54,0.00017253,2]
[346443665,1734978639697,-1385.74,0.00017253,2]
[346443666,1734978639706,-1413.25,0.00017253,2]
[346443667,1734978639715,-500.0,0.00017253,2]
[346443668,1734978639725,-1196.01108702,0.00017253,2]
[346443678,1734978640326,-280.11217407,0.00017253,2]
[346443680,1734978640391,-1000.0,0.00016078,2]
[346443682,1734978640401,-95.24598585,0.00017252,2]
[346443684,1734978640412,-604.75401415,0.00017252,2]
[346443686,1734978640422,-2477.67673891,0.00017253,2]
[346443687,1734978640431,-656.03,0.00017253,2]
[346443689,1734978640440,-3517.77,0.00017253,2]
[346443690,1734978640449,-920.69,0.00017253,2]
[346443692,1734978640458,-1484.71,0.00017253,2]
[346443694,1734978640467,-2649.67,0.00017253,2]
[346443695,1734978640477,-990.91,0.00017253,2]
[346443696,1734978640486,-4919.7,0.00017253,2]
[346443697,1734978640495,-244.57149283,0.00017253,2]
[346443698,1734978640506,-255.42850717,0.00017253,2]
[346443699,1734978640515,-976.98284315,0.00017253,2]
[346443700,1734978642216,-416.3300127,0.00017251,2]
[346443701,1734978642227,-115.1599873,0.00017251,2]
[346443702,1734978642237,-166.51436798,0.00017253,2]
[346443703,1734978642248,-340.94278887,0.00017253,2]
[346443704,1734978642258,-77.27602323,0.00017253,2]
[346443705,1734978642270,-437.58397677,0.00017253,2]
[346443706,1734978642279,-500.0,0.00017253,2]
[346443707,1734978642292,-500.0,0.00017253,2]
[346443708,1734978642305,-1382.38,0.00017253,2]
[346443709,1734978642314,-1268.27,0.00017253,2]
[346443710,1734978642323,-1999.6,0.00017253,2]
[346443711,1734978642332,-2698.45,0.00017253,2]
[346443712,1734978642341,-1140.5,0.00017253,2]
[346443713,1734978642352,-10720.02523832,0.00017254,2]
[346443714,1734978642361,-500.0,0.00017254,2]
[346443715,1734978642370,-500.0,0.00017254,2]
[346443716,1734978642379,-498.53474607,0.00017254,2]
[346443717,1734978642388,-500.0,0.00017254,2]
[346443718,1734978642397,-500.0,0.00017254,2]
[346443719,1734978642407,-546.27234903,0.00017254,2]
[346443720,1734978642415,-156.627051,0.00017254,2]
[346443721,1734978642424,-500.0,0.00017254,2]
[346443722,1734978642434,-500.37225671,0.00017254,2]
[346443723,1734978642443,-500.0,0.00017254,2]
[346443724,1734978642452,-500.40978399,0.00017254,2]
[346443725,1734978642461,-324.87180575,0.00017254,2]
[346443726,1734978642470,-500.0,0.00017254,2]
[346443727,1734978642479,-500.5363035,0.00017254,2]
[346443728,1734978642489,-500.39625089,0.00017254,2]
[346443729,1734978642498,-500.0,0.00017254,2]
[346443730,1734978642507,-391.49208298,0.00017254,2]
[346443731,1734978642517,-500.0,0.00017254,2]
[346443732,1734978642526,-500.0,0.00017254,2]
[346443733,1734978642535,-500.0,0.00017254,2]
[346443734,1734978642545,-500.0,0.00017254,2]
[346443735,1734978642555,-500.0,0.00017254,2]
[346443736,1734978642564,-500.0,0.00017254,2]
[346443737,1734978642574,-500.0,0.00017254,2]
[346443738,1734978642583,-502.4199529,0.00017254,2]
[346443739,1734978642592,-500.0,0.00017254,2]
[346443740,1734978642604,-500.0,0.00017254,2]
[346443741,1734978642613,-500.0,0.00017254,2]
[346443742,1734978642622,-500.0,0.00017254,2]
[346443743,1734978642631,-507.90457725,0.00017254,2]
[346443744,1734978642641,-500.0,0.00017254,2]
[346443745,1734978642650,-903.74,0.00017254,2]
[346443746,1734978642659,-612.76580334,0.00017254,2]
[346443747,1734978642668,-500.0,0.00017254,2]
[346443748,1734978642678,-500.0,0.00017254,2]
[346443749,1734978642687,-624.52,0.00017254,2]
[346443750,1734978642696,-1156.58,0.00017254,2]
[346443751,1734978642705,-500.0,0.00017254,2]
[346443752,1734978642714,-323.80932083,0.00017254,2]
[346443753,1734978642723,-500.0,0.00017254,2]
[346443754,1734978642732,-500.67462845,0.00017254,2]
[346443755,1734978642742,-663.14,0.00017254,2]
[346443756,1734978642751,-500.0,0.00017254,2]
[346443757,1734978642760,-500.0,0.00017254,2]
[346443758,1734978642770,-500.0,0.00017254,2]
[346443759,1734978642779,-500.0,0.00017254,2]
[346443760,1734978642792,-500.0,0.00017254,2]
[346443761,1734978642802,-1145.24,0.00017254,2]
[346443762,1734978642811,-751.67,0.00017254,2]
[346443763,1734978642820,-500.0,0.00017254,2]
[346443764,1734978642831,-500.0,0.00017254,2]
[346443765,1734978642840,-500.0,0.00017254,2]
[346443766,1734978642851,-500.0,0.00017254,2]
[346443767,1734978642861,-500.0,0.00017254,2]
[346443768,1734978642870,-967.14,0.00017254,2]
[346443769,1734978642882,-500.0,0.00017254,2]
[346443770,1734978642891,-525.95417059,0.00017254,2]
[346443771,1734978642900,-500.0,0.00017254,2]
[346443772,1734978642909,-500.0,0.00017254,2]
[346443773,1734978642919,-1151.14,0.00017254,2]
[346443775,1734978642929,-500.0,0.00017254,2]
[346443776,1734978642939,-500.0,0.00017254,2]
[346443777,1734978642948,-500.0,0.00017254,2]
[346443778,1734978642957,-500.0,0.00017254,2]
[346443779,1734978642967,-771.23,0.00017254,2]
[346443780,1734978642976,-500.0,0.00017254,2]
[346443781,1734978642986,-1166.59,0.00017254,2]
[346443782,1734978642995,-637.55,0.00017254,2]
[346443783,1734978643004,-692.3,0.00017254,2]
[346443784,1734978643014,-569.98,0.00017254,2]
[346443785,1734978643023,-500.0,0.00017254,2]
[346443786,1734978643033,-836.23,0.00017254,2]
[346443787,1734978643042,-651.68,0.00017254,2]
[346443788,1734978643050,-500.0,0.00017254,2]
[346443789,1734978643060,-500.0,0.00017254,2]
[346443790,1734978643069,-500.0,0.00017254,2]
[346443792,1734978643078,-500.0,0.00017254,2]
[346443794,1734978643089,-500.0,0.00017254,2]
[346443796,1734978643098,-500.0,0.00017254,2]
[346443798,1734978643109,-500.0,0.00017254,2]
[346443800,1734978643118,-500.0,0.00017254,2]
[346443801,1734978643128,-500.0,0.00017254,2]
[346443803,1734978643137,-500.0,0.00017254,2]
[346443804,1734978643147,-500.0,0.00017254,2]
[346443805,1734978643156,-500.0,0.00017254,2]
[346443806,1734978643166,-500.0,0.00017254,2]
[346443807,1734978643175,-500.0,0.00017254,2]
[346443808,1734978643185,-500.0,0.00017254,2]
[346443809,1734978643195,-664.2,0.00017254,2]
[346443810,1734978643205,-500.0,0.00017254,2]
[346443811,1734978643214,-500.0,0.00017254,2]
[346443812,1734978643223,-1335.98,0.00017254,2]
[346443813,1734978643233,-500.0,0.00017254,2]
[346443814,1734978643243,-500.0,0.00017254,2]
[346443815,1734978643252,-500.0,0.00017254,2]
[346443816,1734978643262,-500.0,0.00017254,2]
[346443817,1734978643271,-500.0,0.00017254,2]
[346443818,1734978643280,-730.73,0.00017254,2]
[346443819,1734978643289,-500.0,0.00017254,2]
[346443820,1734978643299,-500.0,0.00017254,2]
[346443821,1734978643308,-756.9,0.00017254,2]
[346443822,1734978643318,-957.12,0.00017254,2]
[346443823,1734978643327,-783.46,0.00017254,2]
[346443824,1734978643337,-500.0,0.00017254,2]
[346443825,1734978643346,-844.54,0.00017254,2]
[346443826,1734978643357,-500.0,0.00017254,2]
[346443827,1734978643367,-500.0,0.00017254,2]
[346443828,1734978643377,-500.0,0.00017254,2]
[346443829,1734978643386,-500.0,0.00017254,2]
[346443830,1734978643396,-1814.58,0.00017254,2]
[346443832,1734978643405,-500.0,0.00017254,2]
[346443834,1734978643414,-500.0,0.00017254,2]
[346443835,1734978643424,-500.0,0.00017254,2]
[346443836,1734978643433,-500.0,0.00017254,2]
[346443838,1734978643442,-500.0,0.00017254,2]
[346443839,1734978643451,-500.0,0.00017254,2]
[346443840,1734978643460,-500.0,0.00017254,2]
[346443841,1734978643470,-506.48,0.00017254,2]
[346443843,1734978643479,-501.48078141,0.00017254,2]
[346443845,1734978643488,-500.0,0.00017254,2]
[346443846,1734978643497,-620.99,0.00017254,2]
[346443847,1734978643506,-500.0,0.00017254,2]
[346443848,1734978643516,-500.0,0.00017254,2]
[346443849,1734978643525,-500.0,0.00017254,2]
[346443850,1734978643534,-1276.33,0.00017254,2]
[346443851,1734978643543,-2029.24,0.00017254,2]
[346443852,1734978643553,-592.89,0.00017254,2]
[346443853,1734978643562,-500.0,0.00017254,2]
[346443854,1734978643571,-500.0,0.00017254,2]
[346443855,1734978643581,-2581.91,0.00017254,2]
[346443856,1734978643590,-500.0,0.00017254,2]
[346443857,1734978643600,-500.0,0.00017254,2]
[346443858,1734978643612,-500.0,0.00017254,2]
[346443859,1734978643621,-500.0,0.00017254,2]
[346443860,1734978643631,-500.0,0.00017254,2]
[346443861,1734978643640,-678.09,0.00017254,2]
[346443862,1734978643649,-1794.22,0.00017254,2]
[346443863,1734978643659,-500.0,0.00017254,2]
[346443864,1734978643668,-505.8,0.00017254,2]
[346443865,1734978643678,-500.0,0.00017254,2]
[346443866,1734978643687,-532.54,0.00017254,2]
[346443867,1734978643697,-233.53982939,0.00017254,2]
[346443868,1734978643707,-910.89,0.00017254,2]
[346443869,1734978643716,-500.0,0.00017254,2]
[346443870,1734978643725,-500.0,0.00017254,2]
[346443871,1734978643735,-992.55,0.00017254,2]
[346443872,1734978643745,-1093.65,0.00017254,2]
[346443873,1734978643754,-500.0,0.00017254,2]
[346443874,1734978643764,-500.0,0.00017254,2]
[346443875,1734978643774,-500.0,0.00017254,2]
[346443876,1734978643784,-991.89,0.00017254,2]
[346443877,1734978643798,-502.36001187,0.00017254,2]
[346443878,1734978643807,-1386.98,0.00017254,2]
[346443879,1734978643817,-1446.86,0.00017254,2]
[346443880,1734978643826,-500.0,0.00017254,2]
[346443881,1734978643837,-1495.71,0.00017254,2]
[346443882,1734978643846,-2453.99,0.00017254,2]
[346443883,1734978643858,-500.0,0.00017254,2]
[346443884,1734978643868,-500.0,0.00017254,2]
[346443885,1734978643877,-500.0,0.00017254,2]
[346443886,1734978643886,-1394.8,0.00017254,2]
[346443887,1734978643896,-1644.34,0.00017254,2]
[346443888,1734978643905,-500.0,0.00017254,2]
[346443889,1734978643914,-500.0,0.00017254,2]
[346443890,1734978643924,-914.12,0.00017254,2]
[346443891,1734978643933,-1158.66,0.00017254,2]
[346443892,1734978643942,-500.0,0.00017254,2]
[346443893,1734978643951,-500.0,0.00017254,2]
[346443894,1734978643961,-681.15,0.00017254,2]
[346443895,1734978643970,-500.0,0.00017254,2]
[346443896,1734978643979,-1406.82,0.00017254,2]
[346443897,1734978643988,-500.0,0.00017254,2]
[346443898,1734978643998,-500.0,0.00017254,2]
[346443899,1734978644007,-1470.99,0.00017254,2]
[346443900,1734978644017,-1005.42,0.00017254,2]
[346443901,1734978644026,-500.0,0.00017254,2]
[346443902,1734978644035,-500.0,0.00017254,2]
[346443903,1734978644044,-2673.6,0.00017254,2]
[346443904,1734978644054,-530.21,0.00017254,2]
[346443905,1734978644063,-1212.01,0.00017254,2]
[346443906,1734978644073,-500.0,0.00017254,2]
[346443907,1734978644082,-500.0,0.00017254,2]
[346443908,1734978644092,-500.0,0.00017254,2]
[346443909,1734978644102,-653.82,0.00017254,2]
[346443910,1734978644112,-500.0,0.00017254,2]
[346443911,1734978644121,-500.0,0.00017254,2]
[346443912,1734978644131,-500.0,0.00017254,2]
[346443913,1734978644140,-1076.9,0.00017254,2]
[346443914,1734978644149,-2529.54,0.00017254,2]
[346443915,1734978644158,-500.0,0.00017254,2]
[346443916,1734978644168,-500.0,0.00017254,2]
[346443917,1734978644177,-500.0,0.00017254,2]
[346443918,1734978644186,-3575.02,0.00017254,2]
[346443919,1734978644196,-907.26,0.00017254,2]
[346443920,1734978644205,-500.0,0.00017254,2]
[346443921,1734978644215,-500.0,0.00017254,2]
[346443922,1734978644224,-500.0,0.00017254,2]
[346443923,1734978644234,-500.0,0.00017254,2]
[346443924,1734978644243,-947.96,0.00017254,2]
[346443925,1734978644253,-500.0,0.00017254,2]
[346443926,1734978644262,-704.39,0.00017254,2]
[346443927,1734978644271,-503.35394734,0.00017254,2]
[346443928,1734978644281,-500.0,0.00017254,2]
[346443929,1734978644291,-1339.88,0.00017254,2]
[346443930,1734978644300,-500.0,0.00017254,2]
[346443931,1734978644310,-500.0,0.00017254,2]
[346443932,1734978644319,-500.0,0.00017254,2]
[346443933,1734978644329,-840.4,0.00017254,2]
[346443934,1734978644338,-500.0,0.00017254,2]
[346443935,1734978644347,-500.0,0.00017254,2]
[346443936,1734978644359,-500.0,0.00017254,2]
[346443937,1734978644369,-345.49348443,0.00017254,2]
[346443938,1734978644378,-500.0,0.00017254,2]
[346443939,1734978644388,-626.76,0.00017254,2]
[346443940,1734978644397,-500.0,0.00017254,2]
[346443941,1734978644407,-506.36,0.00017254,2]
[346443942,1734978644417,-1745.93,0.00017254,2]
[346443943,1734978644426,-500.0,0.00017254,2]
[346443944,1734978644435,-719.16,0.00017254,2]
[346443945,1734978644445,-1456.41,0.00017254,2]
[346443946,1734978644454,-520.57,0.00017254,2]
[346443947,1734978644463,-1331.48,0.00017254,2]
[346443948,1734978644472,-500.0,0.00017254,2]
[346443949,1734978644482,-500.0,0.00017254,2]
[346443950,1734978644491,-694.05,0.00017254,2]
[346443951,1734978644500,-500.0,0.00017254,2]
[346443952,1734978644510,-500.0,0.00017254,2]
[346443953,1734978644519,-1448.08,0.00017254,2]
[346443954,1734978644528,-1504.2,0.00017254,2]
[346443955,1734978644537,-500.0,0.00017254,2]
[346443956,1734978644546,-240.8699292,0.00017254,2]
[346443957,1734978644556,-486.01095454,0.00017254,2]
[346443958,1734978644734,-500.0,0.00017254,2]
[346443959,1734978644744,-639.91,0.00017254,2]
[346443960,1734978644753,-500.0,0.00017254,2]
[346443961,1734978644763,-671.63,0.00017254,2]
[346443962,1734978644773,-622.73,0.00017254,2]
[346443963,1734978644783,-2391.94,0.00017254,2]
[346443964,1734978644796,-500.0,0.00017254,2]
[346443965,1734978644805,-910.65,0.00017254,2]
[346443966,1734978644815,-1622.72,0.00017254,2]
[346443967,1734978644825,-530.81,0.00017254,2]
[346443968,1734978644835,-500.0,0.00017254,2]
[346443969,1734978644845,-558.33321804,0.00017254,2]
[346443970,1734978644855,-1259.1,0.00017254,2]
[346443971,1734978644866,-500.0,0.00017254,2]
[346443972,1734978644877,-611.74,0.00017254,2]
[346443973,1734978644886,-500.0,0.00017254,2]
[346443974,1734978644895,-663.2,0.00017254,2]
[346443975,1734978644905,-1297.42,0.00017254,2]
[346443976,1734978644915,-500.0,0.00017254,2]
[346443977,1734978644924,-1645.88,0.00017254,2]
[346443978,1734978644933,-500.0,0.00017254,2]
[346443979,1734978644943,-678.62,0.00017254,2]
[346443980,1734978644953,-500.0,0.00017254,2]
[346443981,1734978644963,-500.0,0.00017254,2]
[346443982,1734978644973,-2374.84,0.00017254,2]
[346443983,1734978644982,-500.0,0.00017254,2]
[346443984,1734978644992,-500.0,0.00017254,2]
[346443985,1734978645001,-500.0,0.00017254,2]
[346443986,1734978645011,-1362.14,0.00017254,2]
[346443987,1734978645020,-500.0,0.00017254,2]
[346443988,1734978645031,-500.0,0.00017254,2]
[346443989,1734978645040,-500.0,0.00017254,2]
[346443990,1734978645049,-877.03,0.00017254,2]
[346443991,1734978645059,-528.99,0.00017254,2]
[346443992,1734978645068,-755.53,0.00017254,2]
[346443993,1734978645078,-500.0,0.00017254,2]
[346443994,1734978645087,-502.21086994,0.00017254,2]
[346443995,1734978645096,-1806.68,0.00017254,2]
[346443996,1734978645107,-1072.6,0.00017254,2]
[346443997,1734978645116,-500.0,0.00017254,2]
[346443998,1734978645126,-508.54555196,0.00017254,2]
[346443999,1734978645135,-1819.2,0.00017254,2]
[346444000,1734978645144,-500.0,0.00017254,2]
[346444001,1734978645153,-500.0,0.00017254,2]
[346444002,1734978645162,-635.26,0.00017254,2]
[346444003,1734978645171,-500.0,0.00017254,2]
[346444004,1734978645181,-500.0,0.00017254,2]
[346444005,1734978645191,-500.0,0.00017254,2]
[346444006,1734978645200,-500.0,0.00017254,2]
[346444007,1734978645210,-2612.06,0.00017254,2]
[346444008,1734978645219,-500.0,0.00017254,2]
[346444009,1734978645228,-500.0,0.00017254,2]
[346444010,1734978645238,-1102.63,0.00017254,2]
[346444011,1734978645247,-1183.55,0.00017254,2]
[346444012,1734978645256,-500.0,0.00017254,2]
[346444013,1734978645266,-955.35,0.00017254,2]
[346444014,1734978645276,-2959.5,0.00017254,2]
[346444015,1734978645285,-1287.54,0.00017254,2]
[346444016,1734978645294,-1286.4,0.00017254,2]
[346444017,1734978645303,-1303.96,0.00017254,2]
[346444018,1734978645313,-967.69,0.00017254,2]
[346444019,1734978645323,-500.0,0.00017254,2]
[346444020,1734978645332,-2434.31554899,0.0001728,2]
[346444021,1734978645341,-500.0,0.00017353,2]
[346444022,1734978645351,-500.0,0.00017353,2]
[346444023,1734978645363,-89304.0,0.00017354,2]
[346444024,1734978645373,-626.76,0.00017354,2]
[346444025,1734978645383,-626.76,0.00017354,2]
[346444026,1734978645392,-500.0,0.00017354,2]
[346444027,1734978645402,-3542.6,0.00017355,2]
[346444028,1734978645411,-1906.17,0.00017355,2]
[346444029,1734978645421,-1346.96,0.00017355,2]
[346444030,1734978645430,-1771.02,0.00017355,2]
[346444031,1734978645441,-1385.05,0.00017355,2]
[346444032,1734978645451,-500.0,0.00017355,2]
[346444033,1734978645461,-3117.89,0.00017355,2]
[346444034,1734978645471,-2101.0,0.00017355,2]
[346444035,1734978645481,-3016.83,0.00017355,2]
[346444036,1734978645491,-725.65033136,0.00017355,2]
[346444037,1734978645508,-648.97966864,0.00017355,2]
[346444038,1734978645518,-2785.77,0.00017355,2]
[346444039,1734978645528,-500.0,0.00017355,2]
[346444040,1734978645537,-556.89,0.00017355,2]
[346444041,1734978645547,-1697.42,0.00017355,2]
[346444042,1734978645556,-930.82,0.00017355,2]
[346444043,1734978645566,-758.02,0.00017355,2]
[346444044,1734978645575,-2360.15,0.00017355,2]
[346444045,1734978645585,-557.53,0.00017355,2]
[346444046,1734978645594,-1095.12,0.00017355,2]
[346444047,1734978645605,-1249.96,0.00017355,2]
[346444048,1734978645615,-500.0,0.00017355,2]
[346444049,1734978645625,-1240.28,0.00017355,2]
[346444050,1734978645635,-10720.02523832,0.00017357,2]
[346444051,1734978645644,-626.76,0.00017455,2]
[346444052,1734978645655,-500.0,0.00017455,2]
[346444053,1734978645665,-92876.69,0.00017455,2]
[346444054,1734978645674,-663.66,0.00017456,2]
[346444055,1734978645684,-500.0,0.00017456,2]
[346444056,1734978645694,-599.46,0.00017456,2]
[346444057,1734978645703,-500.0,0.00017456,2]
[346444058,1734978645713,-483.62990618,0.00017456,2]
[346444059,1734978645723,-500.0,0.00017456,2]
[346444060,1734978645732,-1032.17,0.00017456,2]
[346444061,1734978645742,-500.0,0.00017456,2]
[346444062,1734978645752,-500.0,0.00017456,2]
[346444063,1734978645762,-1694.86,0.00017456,2]
[346444064,1734978645771,-705.06,0.00017456,2]
[346444065,1734978645781,-500.0,0.00017456,2]
[346444066,1734978645795,-500.0,0.00017456,2]
[346444067,1734978645805,-500.0,0.00017456,2]
[346444068,1734978645814,-500.0,0.00017456,2]
[346444069,1734978645824,-630.84,0.00017456,2]
[346444070,1734978645835,-1278.95,0.00017456,2]
[346444071,1734978645844,-500.0,0.00017456,2]
[346444072,1734978645856,-500.0,0.00017456,2]
[346444073,1734978645867,-500.0,0.00017456,2]
[346444074,1734978645877,-1164.57,0.00017456,2]
[346444075,1734978645886,-736.79,0.00017456,2]
[346444076,1734978645896,-500.0,0.00017456,2]
[346444077,1734978645905,-1295.38,0.00017456,2]
[346444078,1734978645915,-500.0,0.00017456,2]
[346444079,1734978645924,-1263.59,0.00017456,2]
[346444080,1734978645934,-500.0,0.00017456,2]
[346444081,1734978645944,-502.33008941,0.00017456,2]
[346444082,1734978645953,-150.0,0.00017456,2]
[346444083,1734978645963,-503.40014911,0.00017456,2]
[346444084,1734978645972,-425.66747902,0.00017456,2]
[346444085,1734978645982,-1435.64,0.00017456,2]
[346444086,1734978645992,-676.75,0.00017456,2]
[346444087,1734978646001,-1359.67,0.00017456,2]
[346444088,1734978646011,-1194.66,0.00017456,2]
[346444089,1734978646020,-500.0,0.00017456,2]
[346444090,1734978646029,-1744.22,0.00017456,2]
[346444091,1734978646039,-500.0,0.00017456,2]
[346444092,1734978646048,-500.0,0.00017456,2]
[346444093,1734978646058,-500.0,0.00017456,2]
[346444094,1734978646067,-527.64,0.00017456,2]
[346444095,1734978646077,-500.0,0.00017456,2]
[346444096,1734978646086,-500.0,0.00017456,2]
[346444097,1734978646095,-970.9,0.00017456,2]
[346444098,1734978646106,-500.0,0.00017456,2]
[346444099,1734978646115,-731.74,0.00017456,2]
[346444100,1734978646124,-1488.72,0.00017456,2]
[346444101,1734978646134,-500.0,0.00017456,2]
[346444102,1734978646143,-500.0,0.00017456,2]
[346444103,1734978646152,-780.29,0.00017456,2]
[346444104,1734978646162,-500.0,0.00017456,2]
[346444105,1734978646171,-609.85,0.00017456,2]
[346444106,1734978646180,-500.0,0.00017456,2]
[346444107,1734978646191,-1641.93,0.00017456,2]
[346444108,1734978646200,-500.0,0.00017456,2]
[346444109,1734978646210,-500.0,0.00017456,2]